[Event "Early-Titled-Tuesday-Blitz-May-28-2024"]
[Site "Chess.com"]
[Date "2024.05.28"]
[Round "1"]
[White "SaraBlackPanther"]
[Black "Narek_Ghimoyan"]
[Result "1-0"]
[WhiteElo "2744"]
[BlackElo "2420"]
[TimeControl "180+1"]
[EndTime "8:05:47 PDT"]
[Termination "SaraBlackPanther won by resignation"]

1. d4 {[%clk 0:02:57.3]} 1... Nf6 {[%clk 0:02:59.6]} 2. c4 {[%clk 0:02:55.1]}
2... e6 {[%clk 0:02:59.5]} 3. Nc3 {[%clk 0:02:55.6]} 3... d5 {[%clk 0:02:54.4]}
4. cxd5 {[%clk 0:02:54.9]} 4... Nxd5 {[%clk 0:02:54.2]} 5. e4 {[%clk 0:02:54]}
5... Nxc3 {[%clk 0:02:54.8]} 6. bxc3 {[%clk 0:02:54.9]} 6... c5 {[%clk
0:02:55.4]} 7. Rb1 {[%clk 0:02:55.3]} 7... Nc6 {[%clk 0:02:49.8]} 8. Nf3 {[%clk
0:02:55.2]} 8... cxd4 {[%clk 0:02:46.6]} 9. cxd4 {[%clk 0:02:56.1]} 9... Bb4+
{[%clk 0:02:46.9]} 10. Bd2 {[%clk 0:02:53.8]} 10... Bxd2+ {[%clk 0:02:45.4]} 11.
Qxd2 {[%clk 0:02:54.7]} 11... O-O {[%clk 0:02:45.4]} 12. Bc4 {[%clk 0:02:54.2]}
12... b6 {[%clk 0:02:39.4]} 13. O-O {[%clk 0:02:53.4]} 13... Bb7 {[%clk
0:02:36.5]} 14. Rfe1 {[%clk 0:02:46.5]} 14... Na5 {[%clk 0:02:34.3]} 15. Bd3
{[%clk 0:02:46.2]} 15... Rc8 {[%clk 0:02:34.1]} 16. Qf4 {[%clk 0:02:37.3]} 16...
Qf6 {[%clk 0:01:50.7]} 17. Qg4 {[%clk 0:02:06]} 17... Qg6 {[%clk 0:01:43.3]} 18.
Qh4 {[%clk 0:02:02.1]} 18... Qf6 {[%clk 0:01:41.4]} 19. Qh3 {[%clk 0:01:59]}
19... Rfd8 {[%clk 0:01:34.6]} 20. d5 {[%clk 0:01:46.5]} 20... exd5 {[%clk
0:01:23.4]} 21. e5 {[%clk 0:01:46.5]} 21... Qh6 {[%clk 0:01:23.8]} 22. Qg4
{[%clk 0:01:41.8]} 22... d4 {[%clk 0:01:10.7]} 23. Nxd4 {[%clk 0:01:39.5]} 23...
Nc6 {[%clk 0:00:38.1]} 24. Nf5 {[%clk 0:01:36.6]} 24... Qg6 {[%clk 0:00:35.9]}
25. Ne7+ {[%clk 0:01:36.5]} 25... Nxe7 {[%clk 0:00:36.3]} 26. Bxg6 {[%clk
0:01:37.2]} 26... Nxg6 {[%clk 0:00:34.8]} 27. Rbd1 {[%clk 0:01:37.1]} 27... Re8
{[%clk 0:00:32]} 28. h4 {[%clk 0:01:25.1]} 28... Nxe5 {[%clk 0:00:29.1]} 29.
Rxe5 {[%clk 0:01:21.6]} 1-0

[Event "Early-Titled-Tuesday-Blitz-May-28-2024"]
[Site "Chess.com"]
[Date "2024.05.28"]
[Round "1"]
[White "GrotBchess"]
[Black "N_I_Chess"]
[Result "1-0"]
[WhiteElo "2594"]
[BlackElo "2219"]
[TimeControl "180+1"]
[EndTime "8:05:49 PDT"]
[Termination "GrotBchess won by resignation"]

1. e4 {[%clk 0:03:00.9]} 1... Nf6 {[%clk 0:01:45.5]} 2. d3 {[%clk 0:02:49.2]}
2... d5 {[%clk 0:01:45.3]} 3. Nd2 {[%clk 0:02:47.4]} 3... e5 {[%clk 0:01:42]} 4.
Ngf3 {[%clk 0:02:47.2]} 4... Nc6 {[%clk 0:01:41.6]} 5. g3 {[%clk 0:02:47.2]}
5... Bc5 {[%clk 0:01:41.1]} 6. Bg2 {[%clk 0:02:47]} 6... O-O {[%clk 0:01:40.8]}
7. c3 {[%clk 0:02:46.4]} 7... a6 {[%clk 0:01:39.8]} 8. O-O {[%clk 0:02:45.8]}
8... Bg4 {[%clk 0:01:39.7]} 9. h3 {[%clk 0:02:45.2]} 9... Bh5 {[%clk 0:01:39.7]}
10. Qc2 {[%clk 0:02:44.2]} 10... Qe8 {[%clk 0:01:38.5]} 11. Nh4 {[%clk
0:02:41.9]} 11... dxe4 {[%clk 0:01:35]} 12. Nxe4 {[%clk 0:02:32.8]} 12... Nxe4
{[%clk 0:01:32.3]} 13. dxe4 {[%clk 0:02:33.7]} 13... Rd8 {[%clk 0:01:22.6]} 14.
Nf5 {[%clk 0:02:32.8]} 14... Bg6 {[%clk 0:01:19.1]} 15. Be3 {[%clk 0:02:31.9]}
15... Bxe3 {[%clk 0:01:17.8]} 16. Nxe3 {[%clk 0:02:32.8]} 16... Qe7 {[%clk
0:01:15.6]} 17. a4 {[%clk 0:02:31.3]} 17... Qc5 {[%clk 0:01:09.8]} 18. b4 {[%clk
0:02:29.5]} 18... Qe7 {[%clk 0:01:06.2]} 19. b5 {[%clk 0:02:29.3]} 19... Na5
{[%clk 0:01:05]} 20. Qb2 {[%clk 0:02:26.1]} 20... Qc5 {[%clk 0:01:02.5]} 21. Qb4
{[%clk 0:02:26.2]} 21... Qxb4 {[%clk 0:00:56.4]} 22. cxb4 {[%clk 0:02:27.1]}
22... Nb3 {[%clk 0:00:57.1]} 23. Ra3 {[%clk 0:02:18.8]} 23... Nd4 {[%clk
0:00:52.1]} 24. bxa6 {[%clk 0:02:15.7]} 24... bxa6 {[%clk 0:00:51.3]} 25. Kh2
{[%clk 0:02:15.3]} 25... Rb8 {[%clk 0:00:48.7]} 26. Rb1 {[%clk 0:02:11.7]} 26...
c5 {[%clk 0:00:45.4]} 27. Nd5 {[%clk 0:02:04.8]} 27... cxb4 {[%clk 0:00:23.3]}
28. Rxb4 {[%clk 0:02:04.2]} 28... Rxb4 {[%clk 0:00:23.8]} 29. Nxb4 {[%clk
0:02:04.3]} 29... a5 {[%clk 0:00:23.8]} 30. Nd5 {[%clk 0:02:02.7]} 30... Rb8
{[%clk 0:00:19]} 31. Rc3 {[%clk 0:01:57]} 31... Ne6 {[%clk 0:00:15.9]} 32. f4
{[%clk 0:01:55.2]} 32... exf4 {[%clk 0:00:15.2]} 33. gxf4 {[%clk 0:01:56.1]}
33... f5 {[%clk 0:00:10.2]} 34. exf5 {[%clk 0:01:55.4]} 34... Nxf4 {[%clk
0:00:04.9]} 35. fxg6 {[%clk 0:01:51.5]} 35... Nxg6 {[%clk 0:00:04.8]} 36. Rc5
{[%clk 0:01:49.4]} 36... Ne5 {[%clk 0:00:02.3]} 37. Rxa5 {[%clk 0:01:48.6]}
37... Rb2 {[%clk 0:00:01.4]} 38. Ne7+ {[%clk 0:01:45.7]} 38... Kf7 {[%clk
0:00:01.9]} 39. Rxe5 {[%clk 0:01:45.6]} 1-0

[Event "Early-Titled-Tuesday-Blitz-May-28-2024"]
[Site "Chess.com"]
[Date "2024.05.28"]
[Round "1"]
[White "Root_21"]
[Black "ArchibaldCerveza29"]
[Result "1-0"]
[WhiteElo "2688"]
[BlackElo "2379"]
[TimeControl "180+1"]
[EndTime "8:05:51 PDT"]
[Termination "Root_21 won by checkmate"]

1. Nf3 {[%clk 0:03:00.9]} 1... d5 {[%clk 0:02:58.8]} 2. g3 {[%clk 0:03:01]} 2...
Nf6 {[%clk 0:02:58.5]} 3. Bg2 {[%clk 0:03:01.1]} 3... e6 {[%clk 0:02:59]} 4. d3
{[%clk 0:03:01]} 4... Be7 {[%clk 0:02:59.9]} 5. O-O {[%clk 0:03:00.8]} 5... O-O
{[%clk 0:03:00.8]} 6. Nbd2 {[%clk 0:03:01.2]} 6... c5 {[%clk 0:03:01.5]} 7. e4
{[%clk 0:03:01.4]} 7... Nc6 {[%clk 0:03:01.9]} 8. Re1 {[%clk 0:03:01.7]} 8... b5
{[%clk 0:03:01.3]} 9. e5 {[%clk 0:03:02.1]} 9... Nd7 {[%clk 0:03:01.7]} 10. Nf1
{[%clk 0:03:02.8]} 10... a5 {[%clk 0:03:01.7]} 11. Bf4 {[%clk 0:03:02.1]} 11...
b4 {[%clk 0:03:01.7]} 12. h4 {[%clk 0:03:02.6]} 12... a4 {[%clk 0:03:01.9]} 13.
h5 {[%clk 0:03:03.1]} 13... a3 {[%clk 0:02:52.1]} 14. b3 {[%clk 0:02:58]} 14...
Ba6 {[%clk 0:02:50.4]} 15. h6 {[%clk 0:02:57.9]} 15... g6 {[%clk 0:02:50.3]} 16.
N1h2 {[%clk 0:02:51.4]} 16... Na7 {[%clk 0:02:42.5]} 17. Qc1 {[%clk 0:02:46.7]}
17... Nb5 {[%clk 0:02:38.8]} 18. Bg5 {[%clk 0:02:46.8]} 18... Bxg5 {[%clk
0:02:16.2]} 19. Nxg5 {[%clk 0:02:46.7]} 19... Nd4 {[%clk 0:02:13]} 20. Ng4
{[%clk 0:02:45]} 20... Rc8 {[%clk 0:02:06.9]} 21. Kh2 {[%clk 0:02:34]} 21... Qe7
{[%clk 0:01:33.2]} 22. Nf3 {[%clk 0:02:02.5]} 22... Nxf3+ {[%clk 0:00:46.7]} 23.
Bxf3 {[%clk 0:02:03.4]} 23... c4 {[%clk 0:00:47.6]} 24. dxc4 {[%clk 0:02:02.5]}
24... dxc4 {[%clk 0:00:48.5]} 25. Rd1 {[%clk 0:02:02.9]} 25... cxb3 {[%clk
0:00:42.6]} 26. Rxd7 {[%clk 0:02:01.2]} 26... b2 {[%clk 0:00:29.8]} 27. Rxe7
{[%clk 0:02:00.3]} 27... bxc1=Q {[%clk 0:00:29.6]} 28. Rxc1 {[%clk 0:02:00.9]}
28... Bc4 {[%clk 0:00:25.5]} 29. Ra1 {[%clk 0:01:54.6]} 29... Bb5 {[%clk
0:00:18.8]} 30. Be4 {[%clk 0:01:54.2]} 30... Ba4 {[%clk 0:00:18]} 31. Rb1 {[%clk
0:01:43.7]} 31... Bxc2 {[%clk 0:00:16.5]} 32. Bxc2 {[%clk 0:01:42.9]} 32... Rxc2
{[%clk 0:00:17.4]} 33. Rxb4 {[%clk 0:01:43.6]} 33... Rxa2 {[%clk 0:00:16.4]} 34.
Rbb7 {[%clk 0:01:43.9]} 34... Re2 {[%clk 0:00:12]} 35. Nf6+ {[%clk 0:01:43.9]}
35... Kh8 {[%clk 0:00:11]} 36. Rxf7 {[%clk 0:01:44.5]} 36... Rxf2+ {[%clk
0:00:07.5]} 37. Kh3 {[%clk 0:01:44.4]} 37... Rxf6 {[%clk 0:00:05.9]} 38. Rxh7+
{[%clk 0:01:42.5]} 38... Kg8 {[%clk 0:00:06]} 39. Rbg7# {[%clk 0:01:43.4]} 1-0

[Event "Early-Titled-Tuesday-Blitz-May-28-2024"]
[Site "Chess.com"]
[Date "2024.05.28"]
[Round "1"]
[White "Kacparov"]
[Black "Triumphmate"]
[Result "1-0"]
[WhiteElo "2917"]
[BlackElo "2511"]
[TimeControl "180+1"]
[EndTime "8:05:52 PDT"]
[Termination "Kacparov won by resignation"]

1. e4 {[%clk 0:03:00.9]} 1... d5 {[%clk 0:02:52.4]} 2. exd5 {[%clk 0:03:00.8]}
2... Nf6 {[%clk 0:02:52.3]} 3. d4 {[%clk 0:02:59.9]} 3... Bg4 {[%clk 0:02:35.9]}
4. Nf3 {[%clk 0:02:59.9]} 4... Qxd5 {[%clk 0:02:17.5]} 5. Be2 {[%clk 0:02:59.5]}
5... Nc6 {[%clk 0:02:16.7]} 6. c4 {[%clk 0:02:58.7]} 6... Qf5 {[%clk 0:02:09.4]}
7. O-O {[%clk 0:02:55.2]} 7... O-O-O {[%clk 0:02:08.1]} 8. Be3 {[%clk
0:02:37.5]} 8... e5 {[%clk 0:02:03.2]} 9. d5 {[%clk 0:02:36.2]} 9... e4 {[%clk
0:01:59.7]} 10. Nd4 {[%clk 0:02:19.7]} 10... Nxd4 {[%clk 0:01:59.6]} 11. Bxd4
{[%clk 0:02:19.7]} 11... Bd6 {[%clk 0:01:56]} 12. Bxf6 {[%clk 0:02:12.7]} 12...
Bxe2 {[%clk 0:01:55.3]} 13. Qxe2 {[%clk 0:02:12.3]} 13... gxf6 {[%clk
0:01:44.4]} 14. Nc3 {[%clk 0:02:10.5]} 14... Rde8 {[%clk 0:01:38.4]} 15. Rad1
{[%clk 0:01:36.1]} 15... Rhg8 {[%clk 0:01:36.5]} 16. g3 {[%clk 0:01:28.1]} 16...
h5 {[%clk 0:01:21.8]} 17. Rd4 {[%clk 0:01:25.9]} 17... h4 {[%clk 0:01:12.4]} 18.
Rxe4 {[%clk 0:01:23.1]} 18... Kd7 {[%clk 0:01:01.2]} 19. c5 {[%clk 0:01:20]}
19... hxg3 {[%clk 0:00:51.4]} 20. fxg3 {[%clk 0:01:15.9]} 20... Bxc5+ {[%clk
0:00:49.4]} 21. Kg2 {[%clk 0:01:14.4]} 21... Qg5 {[%clk 0:00:31.2]} 22. Qb5+
{[%clk 0:01:00.6]} 22... Kd6 {[%clk 0:00:24]} 23. Rxe8 {[%clk 0:00:58.9]} 23...
a6 {[%clk 0:00:23]} 24. Ne4+ {[%clk 0:00:53.6]} 1-0

[Event "Early-Titled-Tuesday-Blitz-May-28-2024"]
[Site "Chess.com"]
[Date "2024.05.28"]
[Round "1"]
[White "microbear"]
[Black "Kunalm64"]
[Result "0-1"]
[WhiteElo "2312"]
[BlackElo "2631"]
[TimeControl "180+1"]
[EndTime "8:05:53 PDT"]
[Termination "Kunalm64 won by resignation"]

1. e4 {[%clk 0:03:00.9]} 1... c6 {[%clk 0:02:56.7]} 2. d4 {[%clk 0:03:00.7]}
2... d5 {[%clk 0:02:56.5]} 3. exd5 {[%clk 0:02:59.6]} 3... cxd5 {[%clk
0:02:55.6]} 4. c4 {[%clk 0:02:59.5]} 4... Nf6 {[%clk 0:02:56]} 5. Nc3 {[%clk
0:02:58.5]} 5... Nc6 {[%clk 0:02:56.6]} 6. Nf3 {[%clk 0:02:56.4]} 6... Be6
{[%clk 0:02:56.8]} 7. c5 {[%clk 0:02:53.7]} 7... Bg4 {[%clk 0:02:55]} 8. Bb5
{[%clk 0:02:53]} 8... e6 {[%clk 0:02:53.7]} 9. Bxc6+ {[%clk 0:02:48.9]} 9...
bxc6 {[%clk 0:02:53.3]} 10. Qa4 {[%clk 0:02:49.4]} 10... Bxf3 {[%clk 0:02:30.8]}
11. Qxc6+ {[%clk 0:02:48.2]} 11... Nd7 {[%clk 0:02:31.4]} 12. gxf3 {[%clk
0:02:39.4]} 12... Be7 {[%clk 0:02:31.5]} 13. Rg1 {[%clk 0:02:33.9]} 13... O-O
{[%clk 0:02:30.2]} 14. Qa4 {[%clk 0:02:16.1]} 14... Bf6 {[%clk 0:02:27.6]} 15.
f4 {[%clk 0:02:03.2]} 15... a5 {[%clk 0:02:07.4]} 16. Be3 {[%clk 0:01:22.9]}
16... Rb8 {[%clk 0:02:06]} 17. O-O-O {[%clk 0:01:22.8]} 17... Rb4 {[%clk
0:02:03]} 18. Qc6 {[%clk 0:01:06.3]} 18... Nb8 {[%clk 0:01:46.5]} 19. Qd6 {[%clk
0:00:59.7]} 19... Qxd6 {[%clk 0:01:27.5]} 20. cxd6 {[%clk 0:01:00.6]} 20... Rd8
{[%clk 0:01:27.5]} 21. f5 {[%clk 0:00:53.4]} 21... Rxd6 {[%clk 0:01:26.1]} 22.
fxe6 {[%clk 0:00:53.8]} 22... fxe6 {[%clk 0:01:25]} 23. a3 {[%clk 0:00:47.1]}
23... Rb7 {[%clk 0:01:23.3]} 24. Kb1 {[%clk 0:00:41.3]} 24... Rdb6 {[%clk
0:01:21.7]} 25. Na4 {[%clk 0:00:35.8]} 25... Rb5 {[%clk 0:01:20.8]} 26. Rc1
{[%clk 0:00:31.3]} 26... Kf7 {[%clk 0:01:17.7]} 27. Rc8 {[%clk 0:00:28.4]} 27...
Nd7 {[%clk 0:01:15.2]} 28. Rgc1 {[%clk 0:00:26.8]} 28... e5 {[%clk 0:01:06.4]}
29. dxe5 {[%clk 0:00:25]} 29... Bxe5 {[%clk 0:01:06.6]} 30. R8c7 {[%clk
0:00:24.7]} 30... Rxc7 {[%clk 0:01:03.8]} 0-1

[Event "Early-Titled-Tuesday-Blitz-May-28-2024"]
[Site "Chess.com"]
[Date "2024.05.28"]
[Round "1"]
[White "OparinGrigoriy"]
[Black "HajiyevKanan"]
[Result "1-0"]
[WhiteElo "3060"]
[BlackElo "2538"]
[TimeControl "180+1"]
[EndTime "8:05:56 PDT"]
[Termination "OparinGrigoriy won on time"]

1. Nf3 {[%clk 0:02:54.6]} 1... d5 {[%clk 0:02:59.8]} 2. g3 {[%clk 0:02:55.5]}
2... Nf6 {[%clk 0:03:00.1]} 3. Bg2 {[%clk 0:02:55.8]} 3... g6 {[%clk 0:03:01]}
4. O-O {[%clk 0:02:55.2]} 4... Bg7 {[%clk 0:03:01.1]} 5. c4 {[%clk 0:02:56.1]}
5... c6 {[%clk 0:03:01.2]} 6. b3 {[%clk 0:02:56.1]} 6... O-O {[%clk 0:03:01.7]}
7. Bb2 {[%clk 0:02:56.3]} 7... a5 {[%clk 0:03:02.3]} 8. Nc3 {[%clk 0:02:55.9]}
8... Bg4 {[%clk 0:03:02.4]} 9. cxd5 {[%clk 0:02:53.2]} 9... Nxd5 {[%clk
0:03:01]} 10. d4 {[%clk 0:02:52.1]} 10... Nxc3 {[%clk 0:02:56.9]} 11. Bxc3
{[%clk 0:02:53]} 11... Nd7 {[%clk 0:02:55.6]} 12. h3 {[%clk 0:02:51.6]} 12...
Bxf3 {[%clk 0:02:44.1]} 13. Bxf3 {[%clk 0:02:52.5]} 13... Nb6 {[%clk 0:02:31.4]}
14. e3 {[%clk 0:02:52.1]} 14... Nd5 {[%clk 0:02:30.1]} 15. Bb2 {[%clk
0:02:52.5]} 15... h5 {[%clk 0:02:27]} 16. Bg2 {[%clk 0:02:52.1]} 16... Re8
{[%clk 0:02:23.7]} 17. Qe2 {[%clk 0:02:49.6]} 17... Qb6 {[%clk 0:02:23.4]} 18.
e4 {[%clk 0:02:43.5]} 18... Nb4 {[%clk 0:02:18.8]} 19. Rfd1 {[%clk 0:02:43.7]}
19... Rad8 {[%clk 0:02:15.7]} 20. d5 {[%clk 0:02:40.4]} 20... Bxb2 {[%clk
0:02:06.8]} 21. Qxb2 {[%clk 0:02:41.3]} 21... cxd5 {[%clk 0:01:32.2]} 22. exd5
{[%clk 0:02:42.2]} 22... Rd6 {[%clk 0:01:28.7]} 23. Rac1 {[%clk 0:02:36.8]}
23... Red8 {[%clk 0:01:28.2]} 24. Qe2 {[%clk 0:02:24.9]} 24... e6 {[%clk
0:00:54.6]} 25. dxe6 {[%clk 0:02:22.3]} 25... Rxd1+ {[%clk 0:00:55.5]} 26. Rxd1
{[%clk 0:02:22.6]} 26... Rxd1+ {[%clk 0:00:56.2]} 27. Qxd1 {[%clk 0:02:23.5]}
27... Qxe6 {[%clk 0:00:56.2]} 28. Qd8+ {[%clk 0:02:20.8]} 28... Kg7 {[%clk
0:00:55.3]} 29. Qxa5 {[%clk 0:02:21.7]} 29... Qe1+ {[%clk 0:00:37.4]} 30. Bf1
{[%clk 0:02:20.8]} 30... h4 {[%clk 0:00:38.3]} 31. gxh4 {[%clk 0:02:18.5]} 31...
Qe4 {[%clk 0:00:35.9]} 32. a3 {[%clk 0:02:11.6]} 32... Nd5 {[%clk 0:00:35.1]}
33. Bg2 {[%clk 0:02:11.9]} 33... Qb1+ {[%clk 0:00:32.8]} 34. Kh2 {[%clk
0:02:12.3]} 34... Nf6 {[%clk 0:00:24.5]} 35. Qc3 {[%clk 0:02:12.2]} 35... b6
{[%clk 0:00:22.5]} 36. a4 {[%clk 0:02:12]} 36... Qf5 {[%clk 0:00:22.7]} 37. Qe3
{[%clk 0:02:10.6]} 37... Qa5 {[%clk 0:00:13.1]} 38. Qd4 {[%clk 0:02:07]} 38...
Qf5 {[%clk 0:00:10.9]} 39. b4 {[%clk 0:02:01.3]} 39... Kh7 {[%clk 0:00:04.7]}
40. a5 {[%clk 0:01:59]} 40... bxa5 {[%clk 0:00:04.3]} 41. bxa5 {[%clk
0:01:59.9]} 41... Kg7 {[%clk 0:00:01.4]} 42. a6 {[%clk 0:01:59.7]} 42... Qa5
{[%clk 0:00:01.5]} 43. a7 {[%clk 0:01:59.5]} 43... Qc7+ {[%clk 0:00:02.2]} 44.
f4 {[%clk 0:01:55.8]} 44... Qa5 {[%clk 0:00:02.9]} 45. a8=Q {[%clk 0:01:55]} 1-0

[Event "Early-Titled-Tuesday-Blitz-May-28-2024"]
[Site "Chess.com"]
[Date "2024.05.28"]
[Round "1"]
[White "Stanbad1"]
[Black "guineo59"]
[Result "1-0"]
[WhiteElo "2633"]
[BlackElo "2319"]
[TimeControl "180+1"]
[EndTime "8:05:58 PDT"]
[Termination "Stanbad1 won by resignation"]

1. d4 {[%clk 0:03:00.3]} 1... Nf6 {[%clk 0:02:59.6]} 2. Nc3 {[%clk 0:03:00.1]}
2... d5 {[%clk 0:02:59.6]} 3. Bf4 {[%clk 0:02:57.8]} 3... c5 {[%clk 0:02:57.6]}
4. e4 {[%clk 0:02:56.6]} 4... e6 {[%clk 0:02:50.8]} 5. Nb5 {[%clk 0:02:54.2]}
5... Na6 {[%clk 0:02:50.2]} 6. e5 {[%clk 0:02:50.8]} 6... Nd7 {[%clk 0:02:47.8]}
7. c3 {[%clk 0:02:51.2]} 7... Be7 {[%clk 0:02:46]} 8. Nf3 {[%clk 0:02:49.9]}
8... O-O {[%clk 0:02:46]} 9. a4 {[%clk 0:02:47.3]} 9... Nc7 {[%clk 0:02:45.7]}
10. h4 {[%clk 0:02:43.5]} 10... a6 {[%clk 0:02:45.4]} 11. Nd6 {[%clk 0:02:25.7]}
11... Ne8 {[%clk 0:02:41.8]} 12. Nxc8 {[%clk 0:02:23.4]} 12... Rxc8 {[%clk
0:02:41.3]} 13. Bd3 {[%clk 0:02:24]} 13... f5 {[%clk 0:02:11.5]} 14. exf6 {[%clk
0:02:22.4]} 14... Nexf6 {[%clk 0:02:10.5]} 15. Qe2 {[%clk 0:02:20.7]} 15... Qb6
{[%clk 0:02:09.3]} 16. a5 {[%clk 0:02:17.9]} 16... Qc6 {[%clk 0:02:08.6]} 17.
Ng5 {[%clk 0:02:15.3]} 17... Ne4 {[%clk 0:01:53.1]} 18. Nxe4 {[%clk 0:02:13.2]}
18... Rxf4 {[%clk 0:01:48.7]} 19. Ng5 {[%clk 0:02:12.6]} 19... Bxg5 {[%clk
0:01:16.1]} 20. hxg5 {[%clk 0:02:11.9]} 20... g6 {[%clk 0:01:15.3]} 21. Qe3
{[%clk 0:02:06.2]} 21... Rcf8 {[%clk 0:00:57.5]} 22. f3 {[%clk 0:02:03.7]} 22...
Qd6 {[%clk 0:00:52.5]} 23. Kf2 {[%clk 0:01:58.1]} 23... e5 {[%clk 0:00:52.1]}
24. dxc5 {[%clk 0:01:54]} 24... Nxc5 {[%clk 0:00:51.8]} 25. Rae1 {[%clk
0:01:53.4]} 25... e4 {[%clk 0:00:44.2]} 26. Be2 {[%clk 0:01:51.6]} 26... exf3
{[%clk 0:00:29.8]} 27. Bxf3 {[%clk 0:01:52.5]} 27... Ne4+ {[%clk 0:00:29.9]} 28.
Kg1 {[%clk 0:01:50.3]} 28... Nxg5 {[%clk 0:00:29.9]} 29. Be2 {[%clk 0:01:39.9]}
29... Re4 {[%clk 0:00:29.9]} 30. Qxg5 {[%clk 0:01:37.8]} 30... Qc5+ {[%clk
0:00:27.4]} 31. Kh2 {[%clk 0:01:36.9]} 31... Qd6+ {[%clk 0:00:21.4]} 32. Kh3
{[%clk 0:01:29.8]} 32... Rf5 {[%clk 0:00:20.7]} 33. Qg3 {[%clk 0:01:25.8]} 33...
Rxe2 {[%clk 0:00:18.9]} 34. Qxd6 {[%clk 0:01:24.2]} 1-0

[Event "Early-Titled-Tuesday-Blitz-May-28-2024"]
[Site "Chess.com"]
[Date "2024.05.28"]
[Round "1"]
[White "lefonghua"]
[Black "eltenedor"]
[Result "1-0"]
[WhiteElo "2586"]
[BlackElo "2186"]
[TimeControl "180+1"]
[EndTime "8:05:59 PDT"]
[Termination "lefonghua won by resignation"]

1. d4 {[%clk 0:03:00.9]} 1... b6 {[%clk 0:02:58.9]} 2. c4 {[%clk 0:02:58.9]}
2... Bb7 {[%clk 0:02:58.5]} 3. Nc3 {[%clk 0:02:59.6]} 3... e6 {[%clk 0:02:57.9]}
4. e4 {[%clk 0:02:59]} 4... Bb4 {[%clk 0:02:56.3]} 5. f3 {[%clk 0:02:56.8]} 5...
Bxc3+ {[%clk 0:02:50.4]} 6. bxc3 {[%clk 0:02:57.7]} 6... d6 {[%clk 0:02:50.8]}
7. Bd3 {[%clk 0:02:56.9]} 7... e5 {[%clk 0:02:40]} 8. Ne2 {[%clk 0:02:56.4]}
8... Nd7 {[%clk 0:02:38.9]} 9. O-O {[%clk 0:02:56.3]} 9... Ne7 {[%clk
0:02:36.3]} 10. Ng3 {[%clk 0:02:53.3]} 10... Ng6 {[%clk 0:02:32.2]} 11. Be3
{[%clk 0:02:50.3]} 11... Nf6 {[%clk 0:02:23.7]} 12. Qd2 {[%clk 0:02:44.9]} 12...
Qe7 {[%clk 0:02:23.2]} 13. Nf5 {[%clk 0:02:43.3]} 13... Qf8 {[%clk 0:02:23.3]}
14. g4 {[%clk 0:02:37]} 14... h5 {[%clk 0:02:13.6]} 15. g5 {[%clk 0:02:32.7]}
15... Nd7 {[%clk 0:02:10.6]} 16. c5 {[%clk 0:02:25.7]} 16... dxc5 {[%clk
0:01:58.3]} 17. dxc5 {[%clk 0:02:24.7]} 17... Ne7 {[%clk 0:01:55.8]} 18. Bb5
{[%clk 0:02:18.4]} 18... Rd8 {[%clk 0:01:24.4]} 19. Nxe7 {[%clk 0:01:58.5]}
19... Qxe7 {[%clk 0:01:23.3]} 20. c6 {[%clk 0:01:58.6]} 20... Nb8 {[%clk
0:01:21.3]} 21. cxb7+ {[%clk 0:01:54.7]} 21... c6 {[%clk 0:01:18.2]} 22. Bd3
{[%clk 0:01:54.6]} 22... Qxb7 {[%clk 0:01:12.6]} 23. Rad1 {[%clk 0:01:53.4]}
23... O-O {[%clk 0:01:11.3]} 24. Qe2 {[%clk 0:01:41.1]} 24... Rd6 {[%clk
0:00:59.8]} 25. f4 {[%clk 0:01:36.2]} 25... exf4 {[%clk 0:00:47.5]} 26. Bxf4
{[%clk 0:01:37.1]} 26... Rg6 {[%clk 0:00:41.9]} 27. e5 {[%clk 0:01:34.1]} 27...
Re6 {[%clk 0:00:41.3]} 28. Qxh5 {[%clk 0:01:31.1]} 28... g6 {[%clk 0:00:40.7]}
29. Qf3 {[%clk 0:01:27.3]} 29... b5 {[%clk 0:00:34.7]} 30. Bc2 {[%clk
0:01:25.1]} 30... Qb6+ {[%clk 0:00:25.2]} 31. Kh1 {[%clk 0:01:24.1]} 31... c5
{[%clk 0:00:23.6]} 32. Be4 {[%clk 0:01:15.1]} 32... Qc7 {[%clk 0:00:20.3]} 33.
Bd5 {[%clk 0:01:14.7]} 33... Re7 {[%clk 0:00:19.7]} 34. e6 {[%clk 0:01:13.6]}
34... Qb6 {[%clk 0:00:16.9]} 35. exf7+ {[%clk 0:01:13.1]} 1-0

[Event "Early-Titled-Tuesday-Blitz-May-28-2024"]
[Site "Chess.com"]
[Date "2024.05.28"]
[Round "1"]
[White "WindWhistler11"]
[Black "vugarrasulov"]
[Result "0-1"]
[WhiteElo "2527"]
[BlackElo "3007"]
[TimeControl "180+1"]
[EndTime "8:06:00 PDT"]
[Termination "vugarrasulov won by resignation"]

1. c4 {[%clk 0:02:55.5]} 1... e5 {[%clk 0:02:58.9]} 2. g3 {[%clk 0:02:56]} 2...
Nf6 {[%clk 0:02:54.4]} 3. Bg2 {[%clk 0:02:55.7]} 3... Bc5 {[%clk 0:02:54]} 4. e3
{[%clk 0:02:49.7]} 4... O-O {[%clk 0:02:53.7]} 5. Nc3 {[%clk 0:02:41.9]} 5... d6
{[%clk 0:02:48]} 6. Nge2 {[%clk 0:02:38.3]} 6... a6 {[%clk 0:02:47.5]} 7. Rb1
{[%clk 0:02:28.7]} 7... Nc6 {[%clk 0:02:44.6]} 8. a3 {[%clk 0:02:28.4]} 8... Re8
{[%clk 0:02:41.5]} 9. b4 {[%clk 0:02:24.7]} 9... Ba7 {[%clk 0:02:42]} 10. Qc2
{[%clk 0:02:08.9]} 10... Bg4 {[%clk 0:02:38]} 11. d3 {[%clk 0:02:04.5]} 11...
Qd7 {[%clk 0:02:32.9]} 12. h3 {[%clk 0:02:03.7]} 12... Be6 {[%clk 0:02:31.9]}
13. Nd5 {[%clk 0:02:01]} 13... Bxd5 {[%clk 0:02:30.7]} 14. cxd5 {[%clk
0:01:58.2]} 14... Ne7 {[%clk 0:02:31.3]} 15. Qb3 {[%clk 0:01:33.4]} 15... c6
{[%clk 0:02:24.1]} 16. dxc6 {[%clk 0:01:32.5]} 16... bxc6 {[%clk 0:02:25]} 17.
O-O {[%clk 0:01:29.2]} 17... d5 {[%clk 0:02:25.5]} 18. Bb2 {[%clk 0:01:24.6]}
18... Nf5 {[%clk 0:02:20.1]} 19. Rbc1 {[%clk 0:01:10.1]} 19... h5 {[%clk
0:02:14.6]} 20. Qa4 {[%clk 0:00:58.9]} 20... Rac8 {[%clk 0:02:13.6]} 21. Qxa6
{[%clk 0:00:40.4]} 21... h4 {[%clk 0:02:09.8]} 22. g4 {[%clk 0:00:39.1]} 22...
Nxe3 {[%clk 0:02:10.1]} 23. fxe3 {[%clk 0:00:35.8]} 23... Bxe3+ {[%clk 0:02:11]}
24. Kh1 {[%clk 0:00:32.7]} 24... Bxc1 {[%clk 0:02:10.1]} 25. Bxc1 {[%clk
0:00:31.6]} 25... e4 {[%clk 0:01:58.9]} 26. d4 {[%clk 0:00:29.2]} 26... Ra8
{[%clk 0:01:54.4]} 27. Qb6 {[%clk 0:00:26.5]} 27... e3 {[%clk 0:01:50]} 28. Qc5
{[%clk 0:00:14.7]} 28... Ne4 {[%clk 0:01:40.4]} 29. Bxe4 {[%clk 0:00:14.7]}
29... Rxe4 {[%clk 0:01:41.3]} 30. Rf3 {[%clk 0:00:14.3]} 30... Rae8 {[%clk
0:01:39.4]} 31. Qc3 {[%clk 0:00:13]} 31... Qb7 {[%clk 0:01:36.3]} 32. Rxe3
{[%clk 0:00:09.7]} 32... Rxe3 {[%clk 0:01:36.2]} 33. Bxe3 {[%clk 0:00:09.3]}
33... Qe7 {[%clk 0:01:36.8]} 34. Kg2 {[%clk 0:00:04.9]} 34... Qxe3 {[%clk
0:01:36.6]} 35. Qxe3 {[%clk 0:00:05.6]} 35... Rxe3 {[%clk 0:01:37.5]} 36. Nf4
{[%clk 0:00:05.1]} 36... Rxa3 {[%clk 0:01:37.6]} 0-1